[Event "Nordstansblixten 2025"]
[Site "Nordstan, Göteborg, Sweden"]
[Date "2025.05.10"]
[Round "3.4"]
[White "Bergdahl, Martin"]
[Black "Torres, Lucas"]
[Result "0-1"]
[TimeControl "3 minutes + 2 seconds per move from move one"]
[WhiteFideId "1782231"]
[BlackFideId "1769464"]
[WhiteElo "1867"]
[BlackElo "1805"]

1. Nf3 {[%clk 00:02:49]} {[%emt 00:00:15]} Nf6 {[%clk 00:03:03]} {[%emt
00:00:02]} 2. b3 {[%clk 00:02:46]} {[%emt 00:00:04]} g6 {[%clk 00:02:57]}
{[%emt 00:00:08]} 3. Bb2 {[%clk 00:02:47]} Bg7 {[%clk 00:02:58]} {[%emt
00:00:01]} 4. g3 {[%clk 00:02:41]} {[%emt 00:00:07]} O-O {[%clk 00:02:51]}
{[%emt 00:00:09]} 5. Bg2 {[%clk 00:02:43]} d6 {[%clk 00:02:45]} {[%emt
00:00:09]} 6. Nc3 {[%clk 00:02:34]} {[%emt 00:00:10]} Nc6 {[%clk 00:02:32]}
{[%emt 00:00:14]} 7. O-O {[%clk 00:02:31]} {[%emt 00:00:05]} Bf5 {[%clk
00:02:10]} {[%emt 00:00:24]} 8. Nh4 {[%clk 00:02:26]} {[%emt 00:00:08]} Bd7
{[%clk 00:02:11]} 9. f4 {[%clk 00:02:08]} {[%emt 00:00:20]} e5 {[%clk
00:01:37]} {[%emt 00:00:36]} 10. fxe5 {[%clk 00:01:11]} {[%emt 00:00:59]} dxe5
{[%clk 00:01:36]} {[%emt 00:00:03]} 11. e3 {[%clk 00:00:50]} {[%emt 00:00:22]}
Qe7 {[%clk 00:01:31]} {[%emt 00:00:08]} 12. Nb5 {[%clk 00:00:30]} {[%emt
00:00:23]} Bg4 {[%clk 00:00:57]} {[%emt 00:00:33]} 13. Bf3 {[%clk 00:00:28]}
{[%emt 00:00:06]} Bxf3 {[%clk 00:00:53]} {[%emt 00:00:06]} 14. Qxf3 {[%clk
00:00:26]} {[%emt 00:00:04]} a6 {[%clk 00:00:51]} {[%emt 00:00:05]} 15. Ba3
{[%clk 00:00:22]} {[%emt 00:00:05]} Qd7 {[%clk 00:00:29]} {[%emt 00:00:23]} 16.
Bxf8 {[%clk 00:00:21]} {[%emt 00:00:03]} Rxf8 {[%clk 00:00:29]} {[%emt
00:00:03]} 17. Na3 {[%clk 00:00:11]} {[%emt 00:00:13]} Qxd2 {[%clk 00:00:27]}
{[%emt 00:00:03]} 18. Nc4 {[%clk 00:00:12]} Qd7 {[%clk 00:00:25]} {[%emt
00:00:03]} 19. Rad1 {[%emt 00:00:03]} Qe6 {[%clk 00:00:25]} {[%emt 00:00:02]}
20. Ng2 {[%clk 00:00:05]} {[%emt 00:00:09]} e4 {[%clk 00:00:26]} {[%emt
00:00:02]} 21. Qe2 {[%clk 00:00:06]} b5 {[%clk 00:00:25]} {[%emt 00:00:03]} 22.
Nd2 {[%clk 00:00:07]} Ne5 {[%clk 00:00:25]} {[%emt 00:00:01]} 23. Nf4 {[%clk
00:00:08]} {[%emt 00:00:01]} Qc6 {[%clk 00:00:25]} {[%emt 00:00:02]} 24. Qg2
{[%clk 00:00:06]} {[%emt 00:00:04]} Qxc2 {[%clk 00:00:25]} {[%emt 00:00:03]} 25.
Rc1 {[%clk 00:00:06]} {[%emt 00:00:02]} Qxa2 {[%clk 00:00:22]} {[%emt
00:00:05]} 26. Nxe4 {[%clk 00:00:07]} Nxe4 {[%clk 00:00:22]} {[%emt 00:00:02]}
27. Qxa2 {[%clk 00:00:08]} Ng4 {[%clk 00:00:19]} 28. Rxc7 {[%clk 00:00:05]}
{[%emt 00:00:09]} Nxe3 {[%emt 00:00:04]} 29. Re1 {[%clk 00:00:03]} {[%emt
00:00:02]} Bd4 {[%clk 00:00:20]} {[%emt 00:00:02]} 30. Rxe3 Bxe3+ {[%clk
00:00:21]} 31. Kg2 Rd8 {[%clk 00:00:20]} {[%emt 00:00:03]} 32. Ne2 {[%clk
00:00:06]} {[%emt 00:00:02]} Rd2 {[%clk 00:00:20]} {[%emt 00:00:02]} 33. Rc2
{[%clk 00:00:06]} {[%emt 00:00:02]} Rd8 {[%clk 00:00:20]} {[%emt 00:00:02]} 34.
Nc3 {[%clk 00:00:07]} {[%emt 00:00:02]} Nf6 {[%clk 00:00:20]} {[%emt 00:00:03]}
35. Re2 {[%clk 00:00:07]} {[%emt 00:00:02]} Bd4 {[%clk 00:00:19]} {[%emt
00:00:03]} 36. Ne4 {[%clk 00:00:06]} {[%emt 00:00:02]} Nd5 {[%clk 00:00:20]}
{[%emt 00:00:02]} 37. Qd2 {[%clk 00:00:04]} {[%emt 00:00:04]} Be5 {[%clk
00:00:19]} {[%emt 00:00:03]} 38. Ng5 {[%clk 00:00:03]} {[%emt 00:00:03]} Nf4+
{[%clk 00:00:19]} {[%emt 00:00:02]} 39. gxf4 {[%clk 00:00:04]} Rxd2 {[%clk
00:00:20]} {[%emt 00:00:01]} 40. Rxd2 {[%emt 00:00:02]} Bxf4 {[%clk 00:00:19]}
{[%emt 00:00:01]} 41. Nh3 {[%clk 00:00:06]} Bxd2 {[%clk 00:00:21]} {[%emt
00:00:02]} 42. Nf2 {[%clk 00:00:06]} {[%emt 00:00:02]} Bh6 {[%clk 00:00:22]} 43.
Ne4 {[%clk 00:00:07]} Bf8 {[%clk 00:00:22]} {[%emt 00:00:02]} 44. Nf6+ {[%clk
00:00:08]} {[%emt 00:00:02]} Kg7 {[%clk 00:00:23]} 45. Ne8+ {[%clk 00:00:00]}
{[%emt 00:00:31]} Kh6 {[%clk 00:00:23]} {[%emt 00:00:54]} 46. Nc7 {[%clk
00:01:07]} {[%emt 00:00:03]} b4 {[%clk 00:00:24]} 47. Nxa6 {[%clk 00:00:38]}
{[%emt 00:00:30]} Bd6 {[%clk 00:00:24]} {[%emt 00:00:02]} 48. h4 {[%clk
00:00:33]} {[%emt 00:00:07]} Kh5 {[%clk 00:00:24]} {[%emt 00:00:02]} 49. Kh3
{[%clk 00:00:33]} {[%emt 00:00:02]} f5 {[%clk 00:00:26]} 50. Kg2 {[%clk
00:00:32]} {[%emt 00:00:03]} Kxh4 {[%clk 00:00:26]} {[%emt 00:00:02]} 51. Kh1
{[%clk 00:00:33]} g5 {[%clk 00:00:27]} {[%emt 00:00:02]} 52. Kg1 {[%clk
00:00:35]} g4 {[%clk 00:00:28]} 53. Kh1 {[%clk 00:00:36]} h5 {[%clk 00:00:29]}
54. Kg1 {[%clk 00:00:38]} Kg3 {[%clk 00:00:30]} {[%emt 00:00:01]} 0-1

[Event "Nordstansblixten 2025"]
[Site "Nordstan, Göteborg, Sweden"]
[Date "2025.05.10"]
[Round "3.5"]
[White "Buzleta, Patrik"]
[Black "Kadunic, Admir"]
[Result "0-1"]
[TimeControl "3 minutes + 2 seconds per move from move one"]
[WhiteFideId "1755463"]
[BlackFideId "1773542"]
[WhiteElo "1950"]
[BlackElo "2109"]

1. Nf3 {[%clk 00:03:03]} {[%emt 00:03:56]} d5 {[%clk 00:03:01]} {[%emt
00:00:04]} 2. b3 {[%clk 00:03:04]} {[%emt 00:00:01]} Nc6 {[%clk 00:03:01]} 3.
e3 {[%clk 00:03:05]} Nf6 {[%clk 00:03:03]} 4. h3 {[%clk 00:03:05]} e5 {[%clk
00:03:02]} {[%emt 00:00:03]} 5. d3 {[%clk 00:03:06]} {[%emt 00:00:02]} Bd6
{[%clk 00:03:02]} {[%emt 00:00:01]} 6. Bb2 {[%clk 00:03:07]} Qe7 {[%clk
00:03:03]} 7. a3 {[%clk 00:03:08]} {[%emt 00:00:01]} h6 {[%clk 00:03:03]}
{[%emt 00:00:02]} 8. Qe2 {[%clk 00:03:08]} {[%emt 00:00:02]} Bf5 {[%clk
00:03:04]} {[%emt 00:00:02]} 9. Nbd2 {[%clk 00:03:07]} {[%emt 00:00:02]} Bg6
{[%clk 00:02:48]} {[%emt 00:00:19]} 10. g4 {[%clk 00:03:03]} {[%emt 00:00:05]}
e4 {[%clk 00:02:49]} {[%emt 00:00:02]} 11. Nh2 {[%clk 00:02:47]} {[%emt
00:00:17]} exd3 {[%clk 00:02:47]} {[%emt 00:00:05]} 12. cxd3 {[%clk 00:02:48]}
Be5 {[%clk 00:02:41]} {[%emt 00:00:08]} 13. Ndf3 {[%clk 00:02:43]} {[%emt
00:00:06]} Bxb2 {[%clk 00:02:38]} {[%emt 00:00:06]} 14. Qxb2 {[%clk 00:02:44]}
{[%emt 00:00:01]} O-O {[%clk 00:02:26]} {[%emt 00:00:14]} 15. Bg2 {[%clk
00:02:44]} Bxd3 {[%clk 00:02:23]} {[%emt 00:00:06]} 16. g5 {[%clk 00:02:33]}
{[%emt 00:00:13]} hxg5 {[%clk 00:02:14]} {[%emt 00:00:10]} 17. Nxg5 {[%clk
00:02:34]} Ne4 {[%clk 00:02:12]} {[%emt 00:00:05]} 18. Bxe4 {[%clk 00:02:18]}
{[%emt 00:00:18]} Bxe4 {[%clk 00:02:10]} {[%emt 00:00:05]} 19. Rg1 {[%clk
00:02:18]} f6 {[%clk 00:02:02]} {[%emt 00:00:11]} 20. Ngf3 {[%clk 00:02:09]}
{[%emt 00:00:46]} Rad8 {[%clk 00:01:36]} {[%emt 00:00:11]} 21. O-O-O {[%clk
00:02:05]} {[%emt 00:00:06]} Qc5+ {[%clk 00:01:34]} {[%emt 00:00:05]} 22. Kd2
{[%clk 00:01:47]} {[%emt 00:00:19]} d4 {[%clk 00:01:35]} {[%emt 00:00:01]} 23.
Ke1 {[%clk 00:01:02]} {[%emt 00:00:47]} dxe3 {[%clk 00:01:32]} {[%emt
00:00:06]} 24. Rxd8 {[%clk 00:01:01]} {[%emt 00:00:02]} Rxd8 {[%clk 00:01:25]}
{[%emt 00:00:09]} 25. Rg2 {[%clk 00:00:43]} {[%emt 00:00:19]} Qd5 {[%clk
00:01:14]} {[%emt 00:00:14]} 26. fxe3 {[%clk 00:00:37]} {[%emt 00:00:08]} Bxf3
{[%clk 00:01:09]} {[%emt 00:00:07]} 27. Qxf6 {[%clk 00:00:14]} {[%emt
00:00:25]} 0-1

[Event "Nordstansblixten 2025"]
[Site "Nordstan, Göteborg, Sweden"]
[Date "2025.05.10"]
[Round "3.6"]
[White "Karlsson, Stefan"]
[Black "Cigoja, Vuk"]
[Result "1-0"]
[TimeControl "3 minutes + 2 seconds per move from move one"]
[WhiteFideId "1771183"]
[BlackFideId "14411628"]
[WhiteElo "2128"]
[BlackElo "1719"]

1. d3 {[%clk 00:03:02]} {[%emt 00:00:02]} d5 {[%clk 00:02:59]} {[%emt
00:00:05]} 2. Nd2 {[%clk 00:03:03]} Nf6 {[%clk 00:02:58]} {[%emt 00:00:04]} 3.
Ngf3 {[%clk 00:03:04]} Bf5 {[%clk 00:02:56]} {[%emt 00:00:04]} 4. g3 {[%clk
00:02:57]} {[%emt 00:00:09]} e6 {[%clk 00:02:56]} {[%emt 00:00:02]} 5. Bg2
{[%clk 00:02:57]} {[%emt 00:00:02]} c6 {[%clk 00:02:57]} 6. O-O {[%clk
00:02:54]} {[%emt 00:00:04]} Bd6 {[%clk 00:02:58]} {[%emt 00:00:01]} 7. Nh4
{[%clk 00:02:46]} {[%emt 00:00:10]} Bg6 {[%clk 00:02:52]} {[%emt 00:00:08]} 8.
e4 {[%clk 00:02:39]} {[%emt 00:00:09]} O-O {[%clk 00:02:36]} {[%emt 00:00:18]}
9. Nxg6 {[%clk 00:02:19]} {[%emt 00:00:22]} fxg6 {[%clk 00:02:22]} {[%emt
00:00:16]} 10. Qe2 {[%clk 00:02:15]} {[%emt 00:00:06]} Qc7 {[%clk 00:02:14]}
{[%emt 00:00:10]} 11. c3 {[%clk 00:01:59]} {[%emt 00:00:18]} Nbd7 {[%clk
00:02:07]} {[%emt 00:00:09]} 12. Nf3 {[%clk 00:01:29]} {[%emt 00:00:32]} Rae8
{[%clk 00:01:55]} {[%emt 00:00:14]} 13. a4 {[%clk 00:01:26]} {[%emt 00:00:05]}
dxe4 {[%clk 00:01:54]} {[%emt 00:00:04]} 14. dxe4 {[%clk 00:01:26]} {[%emt
00:00:02]} e5 {[%clk 00:01:45]} {[%emt 00:00:11]} 15. Rd1 {[%clk 00:01:16]}
{[%emt 00:00:11]} a5 {[%clk 00:01:35]} {[%emt 00:00:12]} 16. Ng5 {[%clk
00:01:04]} {[%emt 00:00:14]} Nb6 {[%clk 00:01:05]} {[%emt 00:00:32]} 17. Bh3
{[%clk 00:00:46]} {[%emt 00:00:19]} Qb8 {[%clk 00:00:19]} {[%emt 00:00:48]} 18.
Be6+ {[%clk 00:00:26]} {[%emt 00:00:22]} Rxe6 {[%clk 00:00:11]} {[%emt
00:00:12]} 19. Nxe6 {[%clk 00:00:27]} Re8 {[%clk 00:00:11]} {[%emt 00:00:02]}
20. Ng5 {[%clk 00:00:23]} {[%emt 00:00:06]} h6 {[%clk 00:00:10]} {[%emt
00:00:03]} 21. Nf3 {[%clk 00:00:22]} {[%emt 00:00:02]} Bc5 {[%clk 00:00:09]}
{[%emt 00:00:04]} 22. Be3 {[%clk 00:00:14]} {[%emt 00:00:09]} Bxe3 {[%clk
00:00:06]} {[%emt 00:00:04]} 23. Qxe3 {[%clk 00:00:14]} {[%emt 00:00:02]} Nc4
{[%clk 00:00:05]} {[%emt 00:00:03]} 24. Qe2 {[%clk 00:00:13]} {[%emt 00:00:03]}
1-0

[Event "Nordstansblixten 2025"]
[Site "Nordstan, Göteborg, Sweden"]
[Date "2025.05.10"]
[Round "3.7"]
[White "Vairav, Vihaan"]
[Black "Kenani, Dariush"]
[Result "0-1"]
[TimeControl "3 minutes + 2 seconds per move from move one"]
[WhiteFideId "1783971"]
[BlackFideId "1707973"]
[WhiteElo "1463"]
[BlackElo "1933"]

1. d4 {[%clk 00:03:03]} {[%emt 00:05:30]} Nf6 {[%clk 00:03:01]} {[%emt
00:00:03]} 2. c4 {[%clk 00:03:04]} {[%emt 00:00:01]} e6 {[%clk 00:03:02]} 3.
Nc3 {[%clk 00:03:05]} d5 {[%clk 00:03:01]} {[%emt 00:00:03]} 4. cxd5 {[%clk
00:03:05]} {[%emt 00:00:02]} exd5 {[%clk 00:03:02]} 5. Bg5 {[%clk 00:03:05]}
{[%emt 00:00:03]} c6 {[%clk 00:03:02]} {[%emt 00:00:01]} 6. Qc2 {[%clk
00:02:50]} {[%emt 00:00:16]} Be7 {[%clk 00:03:02]} {[%emt 00:00:04]} 7. Nf3
{[%clk 00:02:49]} {[%emt 00:00:03]} Be6 {[%clk 00:02:58]} {[%emt 00:00:06]} 8.
Qb3 {[%clk 00:02:22]} {[%emt 00:00:28]} b6 {[%clk 00:02:54]} {[%emt 00:00:06]}
9. Ne5 {[%clk 00:02:16]} {[%emt 00:00:08]} O-O {[%clk 00:02:44]} {[%emt
00:00:13]} 10. Bxf6 {[%clk 00:01:59]} {[%emt 00:00:19]} Bxf6 {[%clk 00:02:43]}
{[%emt 00:00:03]} 11. Nf3 {[%clk 00:01:58]} {[%emt 00:00:02]} c5 {[%clk
00:02:38]} {[%emt 00:00:07]} 12. dxc5 {[%emt 00:00:05]} d4 {[%clk 00:02:38]} 13.
Nb5 {[%clk 00:01:34]} {[%emt 00:00:24]} Bxb3 {[%clk 00:02:37]} {[%emt
00:00:03]} 14. axb3 {[%clk 00:01:29]} {[%emt 00:00:07]} bxc5 {[%clk 00:02:33]}
{[%emt 00:00:06]} 15. Rc1 {[%clk 00:01:28]} {[%emt 00:00:03]} Qa5+ {[%clk
00:02:30]} {[%emt 00:00:05]} 16. Nd2 {[%clk 00:01:24]} {[%emt 00:00:06]} Qxb5
{[%clk 00:02:30]} {[%emt 00:00:02]} 17. e3 {[%clk 00:01:20]} {[%emt 00:00:05]}
dxe3 {[%clk 00:02:30]} {[%emt 00:00:03]} 18. Bxb5 {[%clk 00:01:20]} {[%emt
00:00:02]} exd2+ {[%clk 00:02:30]} {[%emt 00:00:02]} 19. Kxd2 {[%clk 00:01:20]}
{[%emt 00:00:02]} a6 {[%clk 00:02:24]} {[%emt 00:00:08]} 20. Be2 {[%clk
00:01:16]} {[%emt 00:00:05]} Bd4 {[%clk 00:02:23]} {[%emt 00:00:04]} 21. Ke1
{[%clk 00:01:12]} {[%emt 00:00:07]} Ra7 {[%clk 00:02:19]} {[%emt 00:00:04]} 22.
Rc2 {[%clk 00:01:07]} {[%emt 00:00:07]} Nd7 {[%clk 00:02:20]} {[%emt 00:00:02]}
23. Bg4 {[%clk 00:00:47]} {[%emt 00:00:21]} Nf6 {[%clk 00:02:18]} {[%emt
00:00:04]} 24. Bf3 {[%clk 00:00:38]} {[%emt 00:00:11]} g6 {[%clk 00:02:15]}
{[%emt 00:00:06]} 25. Be2 {[%clk 00:00:22]} {[%emt 00:00:18]} Re8 {[%clk
00:02:13]} {[%emt 00:00:05]} 26. Kd1 {[%clk 00:00:21]} {[%emt 00:00:03]} Kg7
{[%clk 00:02:08]} {[%emt 00:00:07]} 27. Kc1 {[%clk 00:00:22]} Bxf2 {[%clk
00:02:02]} {[%emt 00:00:08]} 28. Rf1 {[%clk 00:00:23]} Be3+ {[%clk 00:02:00]}
{[%emt 00:00:03]} 29. Kb1 {[%clk 00:00:23]} {[%emt 00:00:04]} a5 {[%clk
00:01:57]} {[%emt 00:00:05]} 30. Rf3 {[%clk 00:00:21]} {[%emt 00:00:04]} Bd4
{[%clk 00:01:57]} {[%emt 00:00:03]} 31. Bc4 {[%emt 00:00:10]} a4 {[%clk
00:01:45]} {[%emt 00:00:13]} 32. bxa4 {[%clk 00:00:13]} {[%emt 00:00:03]} Rxa4
{[%clk 00:01:43]} {[%emt 00:00:04]} 33. Bb5 {[%clk 00:00:14]} Re1+ {[%clk
00:01:42]} {[%emt 00:00:03]} 34. Rc1 {[%clk 00:00:14]} {[%emt 00:00:03]} Rxc1+
{[%clk 00:01:35]} {[%emt 00:00:09]} 35. Kxc1 {[%clk 00:00:15]} Rb4 {[%clk
00:01:35]} {[%emt 00:00:01]} 36. Bd3 {[%emt 00:00:07]} Bxb2+ {[%clk 00:01:33]}
{[%emt 00:00:02]} 37. Kc2 {[%clk 00:00:12]} {[%emt 00:00:02]} Bd4 {[%clk
00:01:33]} {[%emt 00:00:02]} 38. Rf1 {[%clk 00:00:10]} {[%emt 00:00:04]} Rb2+
{[%clk 00:01:32]} {[%emt 00:00:03]} 39. Kc1 {[%emt 00:00:04]} Rxg2 {[%clk
00:01:31]} {[%emt 00:00:01]} 40. Bc4 {[%clk 00:00:09]} {[%emt 00:00:03]} Rxh2
{[%clk 00:01:30]} {[%emt 00:00:03]} 41. Re1 {[%clk 00:00:07]} {[%emt 00:00:04]}
Rf2 {[%clk 00:01:25]} {[%emt 00:00:06]} 42. Re7 {[%clk 00:00:08]} {[%emt
00:00:01]} Nh5 {[%clk 00:01:23]} {[%emt 00:00:04]} 43. Rxf7+ Rxf7 {[%clk
00:01:24]} 44. Bxf7 {[%clk 00:00:08]} Kxf7 {[%clk 00:01:25]} 45. Kd2 {[%clk
00:00:09]} {[%emt 00:00:01]} Ke6 {[%clk 00:01:26]} 46. Kd3 {[%clk 00:00:10]}
{[%emt 00:00:01]} Kd5 {[%clk 00:01:27]} 47. Kd2 {[%clk 00:00:12]} Nf6 {[%clk
00:01:28]} 48. Ke2 {[%clk 00:00:12]} Nd7 {[%clk 00:01:29]} {[%emt 00:00:01]} 49.
Kd2 {[%clk 00:00:13]} {[%emt 00:00:01]} g5 {[%clk 00:01:30]} 50. Ke2 {[%clk
00:00:15]} g4 {[%clk 00:01:31]} {[%emt 00:00:01]} 51. Kf1 {[%clk 00:00:15]} h5
{[%clk 00:01:32]} {[%emt 00:00:02]} 52. Kg2 {[%clk 00:00:16]} h4 {[%clk
00:01:33]} {[%emt 00:00:02]} 53. Kh2 {[%clk 00:00:16]} {[%emt 00:00:02]} Ke4
{[%clk 00:01:33]} {[%emt 00:00:02]} 54. Kg2 {[%clk 00:00:16]} Kf4 {[%clk
00:01:34]} {[%emt 00:00:01]} 55. Kh2 {[%clk 00:00:17]} Kf3 {[%clk 00:01:34]}
{[%emt 00:00:02]} 56. Kh1 {[%clk 00:00:18]} {[%emt 00:00:01]} Nf6 {[%clk
00:01:34]} {[%emt 00:00:02]} 57. Kh2 {[%clk 00:00:18]} {[%emt 00:00:02]} Ne4
{[%clk 00:01:34]} {[%emt 00:00:02]} 58. Kh1 {[%clk 00:00:19]} Kf2 {[%clk
00:01:31]} {[%emt 00:00:05]} 59. Kh2 {[%clk 00:00:20]} {[%emt 00:00:01]} Be5
{[%clk 00:01:31]} {[%emt 00:00:03]} 60. Kh1 {[%clk 00:00:19]} {[%emt 00:00:03]}
Ng3+ {[%clk 00:01:29]} {[%emt 00:00:03]} 61. Kh2 {[%clk 00:00:20]} Nf1 {[%clk
00:01:30]} {[%emt 00:00:01]} 62. Kh1 {[%clk 00:00:21]} {[%emt 00:00:01]} Ng3+
{[%clk 00:01:27]} {[%emt 00:00:05]} 63. Kh2 {[%clk 00:00:23]} Kf3 {[%clk
00:01:20]} {[%emt 00:00:09]} 64. Kg1 {[%clk 00:00:23]} {[%emt 00:00:03]} c4
{[%clk 00:01:18]} {[%emt 00:00:03]} 65. Kh2 {[%clk 00:00:21]} {[%emt 00:00:03]}
c3 {[%clk 00:01:19]} 66. Kg1 {[%clk 00:00:22]} c2 {[%clk 00:01:21]} 67. Kh2
{[%clk 00:00:23]} {[%emt 00:00:02]} Bf4 {[%clk 00:01:17]} {[%emt 00:00:05]} 68.
Kg1 {[%clk 00:00:24]} {[%emt 00:00:01]} c1=Q+ {[%clk 00:01:17]} {[%emt
00:00:03]} 69. Kh2 {[%clk 00:00:25]} Qh1+ {[%clk 00:01:17]} {[%emt 00:00:02]}
0-1

[Event "Nordstansblixten 2025"]
[Site "Nordstan, Göteborg, Sweden"]
[Date "2025.05.10"]
[Round "3.8"]
[White "Gustavsson, Ville"]
[Black "Munuswamy, Shivakumar"]
[Result "0-1"]
[TimeControl "3 minutes + 2 seconds per move from move one"]
[WhiteFideId "1792822"]
[BlackFideId "1788914"]
[WhiteElo "1798"]
[BlackElo "1458"]

1. e4 {[%clk 00:03:03]} d5 {[%clk 00:03:02]} {[%emt 00:00:03]} 2. exd5 {[%clk
00:03:04]} {[%emt 00:00:01]} Nf6 {[%clk 00:03:02]} {[%emt 00:00:02]} 3. d4
{[%clk 00:02:43]} {[%emt 00:00:23]} Nxd5 {[%clk 00:03:01]} {[%emt 00:00:03]} 4.
Nf3 {[%clk 00:02:40]} {[%emt 00:00:05]} Bg4 {[%clk 00:02:56]} {[%emt 00:00:07]}
5. c4 {[%clk 00:02:23]} {[%emt 00:00:19]} Nb6 {[%clk 00:02:47]} {[%emt
00:00:11]} 6. Be3 {[%clk 00:02:08]} {[%emt 00:00:16]} e6 {[%clk 00:02:37]}
{[%emt 00:00:12]} 7. Nbd2 {[%clk 00:02:02]} {[%emt 00:00:08]} Nc6 {[%clk
00:02:36]} {[%emt 00:00:04]} 8. Be2 {[%clk 00:01:59]} {[%emt 00:00:05]} Bxf3
{[%clk 00:02:29]} {[%emt 00:00:08]} 9. Nxf3 {[%clk 00:01:57]} {[%emt 00:00:04]}
Bb4+ {[%clk 00:02:25]} {[%emt 00:00:07]} 10. Bd2 {[%clk 00:01:44]} {[%emt
00:00:15]} Be7 {[%clk 00:02:20]} {[%emt 00:00:06]} 11. Bc3 {[%clk 00:01:36]}
{[%emt 00:00:10]} Qd7 {[%clk 00:02:12]} {[%emt 00:00:10]} 12. O-O {[%clk
00:01:33]} {[%emt 00:00:06]} O-O-O {[%clk 00:02:07]} {[%emt 00:00:07]} 13. a3
{[%clk 00:01:15]} {[%emt 00:00:20]} g5 {[%clk 00:02:04]} {[%emt 00:00:05]} 14.
d5 {[%clk 00:01:11]} {[%emt 00:00:07]} exd5 {[%clk 00:01:55]} {[%emt 00:00:11]}
15. Bxh8 {[%clk 00:01:09]} {[%emt 00:00:04]} Rxh8 {[%clk 00:01:50]} {[%emt
00:00:07]} 16. cxd5 {[%clk 00:01:08]} {[%emt 00:00:03]} Nxd5 {[%clk 00:01:46]}
{[%emt 00:00:05]} 17. Nd4 {[%clk 00:01:02]} {[%emt 00:00:08]} h5 {[%clk
00:01:38]} {[%emt 00:00:10]} 18. Nxc6 {[%clk 00:00:55]} {[%emt 00:00:09]} Qxc6
{[%clk 00:01:35]} {[%emt 00:00:05]} 19. Bxh5 {[%clk 00:00:46]} {[%emt
00:00:11]} Nf4 {[%clk 00:01:32]} {[%emt 00:00:06]} 20. Bf3 {[%clk 00:00:40]}
{[%emt 00:00:08]} Qh6 {[%clk 00:01:31]} {[%emt 00:00:02]} 21. Bg4+ {[%clk
00:00:30]} {[%emt 00:00:13]} Kb8 {[%clk 00:01:30]} {[%emt 00:00:03]} 22. h3
{[%clk 00:00:29]} {[%emt 00:00:03]} Nxh3+ {[%emt 00:00:15]} 23. Bxh3 {[%emt
00:00:01]} f5 {[%clk 00:01:24]} {[%emt 00:00:08]} 24. f3 {[%clk 00:00:30]}
{[%emt 00:00:15]} Qb6+ {[%clk 00:01:24]} {[%emt 00:00:12]} 25. Kh2 {[%clk
00:00:30]} {[%emt 00:00:12]} Bd6+ {[%clk 00:01:24]} {[%emt 00:00:06]} 26. Kh1
{[%clk 00:00:30]} Qxb2 {[%clk 00:01:24]} {[%emt 00:00:14]} 27. Qd5 {[%clk
00:00:21]} {[%emt 00:00:33]} Rxh3+ {[%clk 00:01:14]} {[%emt 00:00:12]} 28. gxh3
{[%clk 00:00:21]} {[%emt 00:00:03]} Qh2# {[%clk 00:01:14]} {[%emt 00:00:02]} 29.
Qg8+ {[%clk 00:00:00]} {[%emt 00:00:05]} Bf8+ {[%clk 00:01:14]} 0-1

[Event "Nordstansblixten 2025"]
[Site "Nordstan, Göteborg, Sweden"]
[Date "2025.05.10"]
[Round "3.9"]
[White "Alsjo, Sigge"]
[Black "Ring, Sami"]
[Result "0-1"]
[TimeControl "3 minutes + 2 seconds per move from move one"]
[WhiteFideId "1794027"]
[BlackFideId "1785869"]
[WhiteElo "1539"]
[BlackElo "1712"]

1. e4 {[%clk 00:03:02]} {[%emt 00:00:02]} c5 {[%clk 00:03:04]} 2. Nf3 {[%clk
00:03:03]} Nc6 {[%clk 00:03:05]} 3. d4 {[%clk 00:03:05]} cxd4 {[%clk 00:03:06]}
4. Nxd4 {[%clk 00:03:06]} Nf6 {[%clk 00:03:07]} {[%emt 00:00:02]} 5. Nc3 {[%clk
00:03:07]} e5 {[%clk 00:03:08]} 6. Nb3 {[%clk 00:03:08]} Bb4 {[%clk 00:03:09]}
{[%emt 00:00:01]} 7. Bd3 {[%clk 00:03:03]} {[%emt 00:00:08]} O-O {[%clk
00:03:08]} {[%emt 00:00:03]} 8. O-O {[%clk 00:02:57]} {[%emt 00:00:07]} Bxc3
{[%clk 00:03:07]} {[%emt 00:00:03]} 9. bxc3 {[%clk 00:02:56]} {[%emt 00:00:03]}
d6 {[%clk 00:02:58]} {[%emt 00:00:11]} 10. Be3 {[%clk 00:02:48]} {[%emt
00:00:10]} a6 {[%clk 00:02:58]} {[%emt 00:00:02]} 11. Qd2 {[%clk 00:02:40]}
{[%emt 00:00:10]} b5 {[%clk 00:02:55]} {[%emt 00:00:05]} 12. c4 {[%clk
00:02:30]} {[%emt 00:00:12]} b4 {[%clk 00:02:41]} {[%emt 00:00:15]} 13. c5
{[%clk 00:02:13]} {[%emt 00:00:20]} d5 {[%clk 00:02:19]} {[%emt 00:00:24]} 14.
Rfe1 {[%clk 00:01:45]} {[%emt 00:00:30]} h6 {[%clk 00:02:07]} {[%emt 00:00:16]}
15. exd5 {[%clk 00:01:41]} {[%emt 00:00:04]} Nxd5 {[%clk 00:02:04]} {[%emt
00:00:05]} 16. Be4 {[%clk 00:01:30]} {[%emt 00:00:13]} Nde7 {[%clk 00:02:00]}
{[%emt 00:00:07]} 17. Qxd8 {[%clk 00:01:10]} {[%emt 00:00:23]} Rxd8 {[%clk
00:02:00]} {[%emt 00:00:02]} 18. Red1 {[%clk 00:01:07]} {[%emt 00:00:05]} Rxd1+
{[%clk 00:01:38]} {[%emt 00:00:24]} 19. Rxd1 {[%clk 00:01:07]} Bb7 {[%clk
00:01:13]} {[%emt 00:00:27]} 20. h3 {[%clk 00:00:47]} {[%emt 00:00:23]} Rd8
{[%clk 00:00:55]} {[%emt 00:00:20]} 21. Rxd8+ {[%clk 00:00:36]} {[%emt
00:00:12]} Nxd8 {[%clk 00:00:54]} {[%emt 00:00:03]} 22. Bxb7 {[%clk 00:00:37]}
{[%emt 00:00:02]} Nxb7 {[%clk 00:00:55]} {[%emt 00:00:01]} 23. g4 {[%clk
00:00:29]} {[%emt 00:00:10]} Nc6 {[%clk 00:00:48]} {[%emt 00:00:09]} 24. f4
{[%clk 00:00:19]} {[%emt 00:00:12]} a5 {[%clk 00:00:33]} {[%emt 00:00:17]} 25.
fxe5 {[%clk 00:00:15]} {[%emt 00:00:05]} Nxe5 {[%clk 00:00:33]} {[%emt
00:00:03]} 26. Kg2 {[%clk 00:00:08]} {[%emt 00:00:09]} Nc4 {[%clk 00:00:29]}
{[%emt 00:00:05]} 0-1